bitfinex/quotes_SOLUSD_20250818
["timestamp","ask_amount","ask_price","bid_price","bid_amount"]
[1755501869472,1e-08,181.22,181.21,124.68845924]
[1755501869895,2.8769912,181.22,181.21,124.68845924]
[1755501870191,0.06,181.24,181.22,76.5230088]
[1755501870402,0.06,181.24,181.23,40.44]
[1755501870785,0.06,181.24,181.23,45.25785024]
[1755501871291,0.06,181.24,181.23,45.95785024]
[1755501871491,0.06,181.24,181.23,53.45261466]
[1755501871889,0.06,181.24,181.23,45.25785024]
[1755501872687,0.06,181.24,181.23,53.45261466]
[1755501874295,0.2,181.27,181.25,41.10621557]
[1755501874468,0.2,181.27,181.26,47.21476442]
[1755501874673,0.2,181.27,181.26,124.43777322]
[1755501874888,0.2,181.27,181.26,116.9430088]
[1755501875075,0.2,181.27,181.26,124.43777322]
[1755501875402,0.2,181.27,181.26,129.95471021]
[1755501875713,0.2,181.27,181.26,129.25471021]
[1755501876303,0.2,181.27,181.26,129.95471021]
[1755501876502,1e-08,181.27,181.26,145.06092578]
[1755501878514,1e-08,181.27,181.26,104.64092578]
[1755501878676,1e-08,181.27,181.26,144.36092578]
[1755501879196,1e-08,181.27,181.26,145.06092578]
[1755501879793,1e-08,181.27,181.26,137.56616136]
[1755501879998,1e-08,181.27,181.26,145.06092578]
[1755501880892,1e-08,181.27,181.26,278.06092578]
[1755501883502,1e-08,181.27,181.26,277.36092578]
[1755501884595,1e-08,181.27,181.26,277.34092578]
[1755501884802,1e-08,181.27,181.26,269.84616136]
[1755501885107,1e-08,181.27,181.26,237.64092578]
[1755501885304,1e-08,181.27,181.26,277.34092578]
[1755501885619,1e-08,181.27,181.26,262.23471021]
[1755501886129,0.65000001,181.27,181.26,215.03994579]
[1755501886277,0.65000001,181.27,181.26,82.03994579]
[1755501886778,0.65000001,181.27,181.26,121.73994579]
[1755501886977,0.65000001,181.27,181.26,82.03994579]
[1755501887307,0.65000001,181.27,181.26,121.73994579]
[1755501892107,1e-08,181.27,181.26,121.73994579]
[1755501893713,8.14476443,181.27,181.26,121.73994579]
[1755501894897,8.14476443,181.27,181.26,76.5230088]
[1755501895097,11.02182905,181.27,181.26,76.5230088]
[1755501898917,11.02182905,181.27,181.22,5.51806031]
[1755501899093,0.65,181.26,181.23,39.7]
[1755501899296,7.49476442,181.24,181.23,39.7]
[1755501899612,8.14476442,181.24,181.23,39.7]
[1755501900315,7.49476442,181.24,181.23,39.7]
[1755501900506,7.49476442,181.24,181.22,45.21806031]
[1755501901093,7.49476442,181.25,181.22,45.21806031]
[1755501901294,8.14476442,181.25,181.22,45.21806031]
[1755501901491,2.87706463,181.27,181.24,7.52476442]
[1755501901798,2.87706463,181.27,181.26,13.01170141]
[1755501902107,2.87706463,181.27,181.26,90.22471021]
[1755501902620,2.87706463,181.27,181.26,82.72994579]
[1755501902810,2.87706463,181.27,181.26,82.03994579]
[1755501902994,3.52706463,181.27,181.26,121.73994579]
[1755501903192,11.02182905,181.27,181.24,0.03]
[1755501903398,7.49476442,181.25,181.24,0.03]
[1755501904003,8.14476442,181.25,181.24,0.03]
[1755501904214,26.65,181.25,181.24,0.03]
[1755501904401,34.14476442,181.25,181.24,0.03]
[1755501905908,39.66200579,181.25,181.24,0.03]
[1755501906520,43.35335735,181.25,181.24,0.03]
[1755501907107,39.66200579,181.25,181.24,0.03]
[1755501907433,43.35184828,181.25,181.24,0.03]
[1755501908030,82.35184828,181.25,181.24,0.03]
[1755501908204,122.05184828,181.25,181.24,0.03]
[1755501910108,137.15806385,181.25,181.24,0.03]
[1755501910317,15.10621557,181.24,181.22,0.03]
[1755501910503,22.60097999,181.23,181.22,0.03]
[1755501910704,26.94082248,181.23,181.22,0.03]
[1755501911109,31.04032014,181.23,181.22,0.03]
[1755501911321,26.94082248,181.23,181.22,0.03]
[1755501911710,32.45867272,181.23,181.22,0.03]
[1755501911902,32.45867272,181.23,181.19,0.03]
[1755501911903,41.10621557,181.2,181.19,0.03]
[1755501912122,99.4855869,181.2,181.19,0.03]
[1755501912311,100.1355869,181.2,181.19,0.03]
[1755501912513,92.64082248,181.2,181.19,0.03]
[1755501913923,98.15958627,181.2,181.19,0.03]
[1755501914118,83.0533707,181.2,181.19,0.03]
[1755501914337,94.46974378,181.2,181.19,0.03]
[1755501914513,96.68231678,181.2,181.19,0.03]
[1755501915523,99.5610863,181.2,181.19,0.03]
[1755501915906,5.09134252,181.2,181.19,0.03]
[1755501916231,2.87876952,181.2,181.19,0.03]
[1755501916927,11.06353394,181.2,181.19,0.03]
[1755501918150,2.87876952,181.2,181.19,0.74]
[1755501918524,2.87876952,181.2,181.19,0.03]
[1755501919693,2.87876952,181.2,181.19,0.74]
[1755501919943,10.37353394,181.2,181.19,0.03]
[1755501920447,16.58229773,181.2,181.19,0.03]
[1755501921326,29.56876952,181.2,181.19,0.03]
[1755501921525,2.87876952,181.2,181.19,0.74]
[1755501921745,2.87876952,181.2,181.19,0.03]
[1755501924042,2.87876952,181.2,181.19,0.74]
[1755501924229,2.87876952,181.2,181.19,13.7538328]
[1755501924636,2.87876952,181.2,181.19,0.74]
[1755501925347,2.87876952,181.2,181.19,80.14]
[1755501928013,2.87876952,181.2,181.19,85.65906838]
[1755501928931,2.87876952,181.2,181.19,79.43]
[1755501929148,11.06353394,181.2,181.19,79.43]
[1755501929462,3.56876952,181.2,181.19,79.43]
[1755501929617,2.87876952,181.2,181.19,79.43]
[1755501929819,10.37353394,181.2,181.19,79.43]
[1755501930937,2.87876952,181.2,181.19,79.43]
[1755501931443,56.32229773,181.2,181.19,0.03]
[1755501933638,56.38229773,181.2,181.19,0.03]
[1755501935874,50.15353394,181.2,181.19,0.03]
[1755501936363,10.43353394,181.2,181.19,0.03]
[1755501937272,2.93876952,181.2,181.19,0.03]
[1755501938235,10.43353394,181.2,181.19,0.03]
[1755501939348,16.64229773,181.2,181.19,0.03]
[1755501939853,11.12353394,181.2,181.19,0.03]
[1755501940057,10.43353394,181.2,181.19,0.03]
[1755501940256,2.93876952,181.2,181.19,0.03]
[1755501940637,15.95229773,181.2,181.19,0.03]
[1755501940838,16.64229773,181.2,181.19,0.03]
[1755501941354,11.12353394,181.2,181.19,0.03]
[1755501941967,16.64229773,181.2,181.19,0.03]
[1755501942776,20.34622336,181.2,181.19,0.03]
[1755501944461,35.45243893,181.2,181.19,0.03]
[1755501944662,47.06450173,181.2,181.19,0.03]
[1755501944874,79.26973731,181.2,181.19,0.03]
[1755501945180,83.77965651,181.2,181.19,0.03]
[1755501947447,79.26973731,181.2,181.19,0.03]
[1755501947990,63.47352174,181.2,181.19,0.03]
[1755501948290,42.63876952,181.2,181.19,0.03]
[1755501948459,2.93876952,181.2,181.19,0.75]
[1755501949599,2.93876952,181.2,181.19,0.03]
[1755501949769,8.45753331,181.2,181.19,0.03]
[1755501949948,16.64229773,181.2,181.19,0.03]
[1755501950155,60.07381704,181.2,181.19,0.03]
[1755501950571,59.38381704,181.2,181.19,0.03]
[1755501950985,60.07381704,181.2,181.19,0.03]
[1755501951275,51.88905262,181.2,181.19,0.03]
[1755501951480,46.37028883,181.2,181.19,0.03]
[1755501951868,51.88905262,181.2,181.19,0.03]
[1755501952185,59.38381704,181.2,181.19,0.03]
[1755501952384,51.88905262,181.2,181.19,0.03]
[1755501952876,60.07381704,181.2,181.19,0.03]
[1755501953607,2.93876952,181.2,181.19,0.75]
[1755501953809,2.93876952,181.2,181.19,0.03]
[1755501953975,10.43353394,181.2,181.19,0.03]
[1755501954175,6.65152924,181.2,181.19,0.03]
[1755501954392,10.43353394,181.2,181.19,0.03]
[1755501954574,14.14629366,181.2,181.19,0.03]
[1755501954775,15.95229773,181.2,181.19,0.03]
[1755501955110,19.66505745,181.2,181.19,0.03]
[1755501955475,59.36505745,181.2,181.19,0.03]
[1755501955686,53.84629366,181.2,181.19,0.03]
[1755501956073,59.36505745,181.2,181.19,0.03]
[1755501956899,53.84629366,181.2,181.19,0.03]
[1755501957107,46.35152924,181.2,181.19,0.03]
[1755501957280,6.65152924,181.2,181.19,0.03]
[1755501957477,6.65152924,181.2,181.19,0.75]
[1755501957684,2.93876952,181.2,181.19,0.75]
[1755501957898,2.93876952,181.2,181.19,0.03]
[1755501958215,6.65502626,181.2,181.19,0.03]
[1755501960533,20.35855447,181.2,181.19,0.03]
[1755501960824,24.48592745,181.2,181.19,0.03]
[1755501961185,24.48704202,181.2,181.19,0.03]
[1755501961417,18.96827823,181.2,181.19,0.03]
[1755501961582,24.48704202,181.2,181.19,0.03]
[1755501961802,25.8681288,181.2,181.19,0.03]
[1755501962187,51.8681288,181.2,181.19,0.03]
[1755501962386,71.58990116,181.2,181.19,0.03]
[1755501963394,15.10621557,181.19,181.18,0.03]
[1755501963594,15.10621557,181.19,181.17,0.03]
[1755501963595,72.21681106,181.19,181.17,0.03]
[1755501963799,72.21681106,181.19,181.15,0.03]
[1755501963800,20.6261979,181.16,181.15,0.03]
[1755501964027,41.10621557,181.14,181.11,0.03]
[1755501964260,97.52681106,181.14,181.11,0.03]
[1755501964597,105.73428611,181.14,181.11,0.03]
[1755501965318,101.09730131,181.14,181.11,0.03]
[1755501965737,28.1221814,181.12,181.11,0.03]
[1755501965926,77.04865575,181.12,181.11,0.03]
[1755501966233,77.73865575,181.12,181.11,0.03]
[1755501966632,77.73865575,181.12,181.09,0.03]
[1755501966822,32.51745434,181.11,181.09,0.03]
[1755501967044,22.60097999,181.1,181.09,0.03]
[1755501967223,72.21745434,181.1,181.09,0.03]
[1755501967420,71.52745434,181.1,181.08,0.03]
[1755501967637,11.90102116,181.09,181.08,0.03]
[1755501967833,22.90952629,181.09,181.08,0.03]
[1755501968342,22.91059673,181.09,181.08,0.03]
[1755501968535,45.51157672,181.09,181.08,0.03]
[1755501969435,45.51157672,181.09,181.07,0.03]
[1755501969744,64.60324508,181.08,181.07,0.03]
[1755501970042,70.1256661,181.08,181.07,0.03]
[1755501971159,85.23188167,181.08,181.07,0.03]
[1755501971351,77.73711725,181.08,181.07,0.03]
[1755501971655,76.35501927,181.08,181.07,0.03]
[1755501972021,72.24965775,181.08,181.07,0.03]
[1755501972317,79.74442217,181.08,181.07,0.03]
[1755501973333,71.55965775,181.08,181.07,0.03]
[1755501974023,72.24965775,181.08,181.07,0.03]
[1755501974732,67.84340101,181.08,181.07,0.03]
[1755501975039,68.53340101,181.08,181.07,0.03]
[1755501976246,76.02816543,181.08,181.07,0.03]
[1755501976537,76.02816543,181.08,181.04,0.03]
[1755501976538,41.10621557,181.05,181.04,0.03]
[1755501976753,15.10621557,181.04,181.03,0.1]
[1755501977040,23.32097999,181.04,181.03,0.1]
[1755501977940,28.84462117,181.04,181.03,0.1]
[1755501978619,33.25650069,181.04,181.03,0.1]
[1755501980132,72.25650069,181.04,181.03,1e-08]
[1755501980346,26.0,181.01,180.99,0.03]
[1755501980555,47.21476442,181.0,180.99,0.03]
[1755501981052,62.32097999,181.0,180.99,0.03]
[1755501982054,63.04097999,181.0,180.99,0.03]
[1755501982238,68.56584186,181.0,180.99,0.03]
[1755501983259,68.56584186,181.0,180.97,0.03]
[1755501983260,41.10621557,180.98,180.97,0.03]
[1755501983462,88.34097999,180.98,180.97,0.03]
[1755501983649,89.06097999,180.98,180.97,0.03]
[1755501984350,87.09168799,180.98,180.97,0.03]
[1755501984536,94.58645241,180.98,180.97,0.03]
[1755501984926,97.46948592,180.98,180.97,0.03]
[1755501985439,15.10621557,180.97,180.95,0.03]
[1755501985631,73.23476442,180.96,180.95,0.03]
[1755501985826,73.95476442,180.96,180.95,0.03]
[1755501986260,60.97561195,180.96,180.95,0.03]
[1755501987040,52.76084753,180.96,180.95,0.03]
[1755501992345,84.98608311,180.96,180.95,0.03]
[1755501992548,92.48084753,180.96,180.95,0.03]
[1755501993369,99.97561195,180.96,180.95,0.03]
[1755501993573,92.48084753,180.96,180.95,0.03]
[1755501993762,99.97561195,180.96,180.95,0.03]
[1755501995172,122.77685024,180.96,180.95,0.03]
[1755501995471,41.10621557,180.92,180.91,0.03]
[1755501995682,88.34097999,180.92,180.91,0.03]
[1755501996171,88.34097999,180.92,180.91,0.72]
[1755501996465,93.86828487,180.92,180.91,0.72]
[1755501996675,93.86828487,180.92,180.91,0.03]
[1755501998548,94.58828487,180.92,180.91,0.03]
[1755501998743,94.58828487,180.92,180.89,0.03]
[1755501998744,102.28350835,180.92,180.89,0.03]
[1755501999065,102.28350835,180.92,180.82,0.69]
[1755501999066,41.10621557,180.87,180.82,0.69]
[1755501999287,26.0,180.84,180.83,0.69]
[1755501999468,65.76,180.84,180.83,0.69]
[1755501999662,65.76,180.84,180.74,13.83161074]
[1755501999663,66.48,180.84,180.74,5.53258634]
[1755501999970,66.48,180.84,180.71,13.83384538]
[1755501999971,66.26,180.84,180.81,0.69]
[1755502000268,70.78792174,180.84,180.81,0.69]
[1755502000446,13.0251261,180.82,180.81,0.69]
[1755502000773,52.7851261,180.82,180.81,0.69]
[1755502001460,52.7851261,180.82,180.79,0.69]
[1755502001783,7.49476442,180.81,180.79,0.69]
[1755502001942,7.49476442,180.81,180.8,0.79]
[1755502002576,13.02543197,180.81,180.8,0.79]
[1755502002766,45.29043156,180.82,180.8,0.79]
[1755502002942,7.49476442,180.81,180.8,0.79]
[1755502003763,7.49476442,180.81,180.8,0.1]
[1755502004150,7.49476442,180.81,180.8,0.79]
[1755502004549,13.02543197,180.81,180.8,0.79]
[1755502005290,47.25476442,180.81,180.8,0.79]
[1755502005657,9.71834018,180.83,180.8,0.79]
[1755502005860,26.0,180.81,180.8,0.1]
[1755502006057,33.49476442,180.81,180.8,0.1]
[1755502006586,43.7499753,180.81,180.8,0.1]
[1755502006885,52.087593,180.81,180.8,0.1]
[1755502007199,67.86380857,180.81,180.8,0.1]
[1755502007363,72.72702157,180.81,180.8,0.1]
[1755502008182,79.93274211,180.81,180.8,0.1]
[1755502008784,79.26274211,180.81,180.8,0.1]
[1755502010051,79.93274211,180.81,180.8,0.1]
[1755502011479,81.31697245,180.81,180.8,0.1]
[1755502012284,41.10621557,180.77,180.76,0.03]
[1755502012585,41.20172254,180.77,180.76,0.03]
[1755502012755,77.32930775,180.77,180.76,0.71]
[1755502012962,82.86507844,180.77,180.76,0.03]
[1755502013165,78.80665577,180.77,180.76,0.03]
[1755502013478,73.27476442,180.77,180.76,0.71]
[1755502013873,39.02665577,180.77,180.76,0.03]
[1755502014077,78.80665577,180.77,180.76,0.03]
[1755502014258,73.27476442,180.77,180.76,0.03]
[1755502014581,73.27476442,180.77,180.76,0.71]
[1755502014785,65.78,180.77,180.76,0.71]
[1755502014956,73.27476442,180.77,180.76,0.71]
[1755502015156,73.27476442,180.77,180.76,0.03]
[1755502015157,82.8673967,180.77,180.76,0.03]
[1755502015880,73.27476442,180.77,180.76,0.71]
[1755502016184,78.80665577,180.77,180.76,0.03]
[1755502016976,98.64426706,180.77,180.76,0.03]
[1755502017164,102.29896585,180.77,180.76,0.03]
[1755502017363,101.62896585,180.77,180.76,0.03]
[1755502017568,86.52275028,180.77,180.76,0.03]
[1755502017767,82.86805149,180.77,180.76,0.03]
[1755502017995,43.08805149,180.77,180.76,0.03]
[1755502018283,78.80665577,180.77,180.76,0.03]
[1755502018665,79.47665577,180.77,180.76,0.03]
[1755502018865,102.30381683,180.77,180.76,0.03]
[1755502019197,101.63381683,180.77,180.76,0.03]
[1755502019371,101.63428664,180.77,180.76,0.03]
[1755502019789,100.86490753,180.77,180.76,0.03]
[1755502020290,104.52457354,180.77,180.76,0.03]
[1755502020471,103.85457354,180.77,180.76,0.03]
[1755502020676,77.59392754,180.77,180.76,0.03]
[1755502020991,85.08869196,180.77,180.76,0.03]
[1755502021292,82.4683551,180.77,180.76,0.03]
[1755502021593,105.73933567,180.77,180.76,0.03]
[1755502021890,109.80665213,180.77,180.76,0.03]
[1755502022073,118.51241128,180.77,180.76,0.03]
[1755502023102,111.01764686,180.77,180.76,0.03]
[1755502023293,114.44519737,180.77,180.76,0.03]
[1755502023990,74.66519737,180.77,180.76,0.03]
[1755502024298,113.7756516,180.77,180.76,0.03]
[1755502024491,110.11349804,180.77,180.76,0.03]
[1755502024869,89.47539112,180.77,180.76,0.03]
[1755502025194,87.51251747,180.77,180.76,0.03]
[1755502025496,89.73012047,180.77,180.76,0.71]
[1755502025907,89.73012047,180.77,180.76,0.03]
[1755502026685,82.23535605,180.77,180.76,0.03]
[1755502026878,89.73012047,180.77,180.76,0.03]
[1755502027100,93.39673408,180.77,180.76,0.03]
[1755502027614,113.24725636,180.77,180.76,0.03]
[1755502027975,113.24705034,180.77,180.76,0.03]
[1755502028572,116.1306637,180.77,180.76,0.03]
[1755502028922,111.38656301,180.77,180.76,0.03]
[1755502029090,112.05656301,180.77,180.76,0.03]
[1755502029289,116.13265441,180.77,180.76,0.03]
[1755502030053,116.13265441,180.77,180.74,0.03]
[1755502030054,15.10621557,180.76,180.74,0.03]
[1755502030331,10.0,180.66,180.62,7.49476442]
[1755502030479,39.78,180.65,180.62,7.49476442]
[1755502031429,39.78,180.65,180.61,7.49476442]
[1755502031571,39.78,180.65,180.6,26.0]
[1755502031780,10.0,180.63,180.55,15.10621557]
[1755502031980,10.0,180.61,180.57,7.49476442]
[1755502032279,39.78,180.6,180.58,0.31]
[1755502032480,39.78,180.6,180.59,0.31]
[1755502032698,39.78,180.6,180.59,5.84740517]
[1755502033084,39.78,180.6,180.59,13.34216959]
[1755502033276,39.78,180.6,180.59,5.84740517]
[1755502033509,49.78,180.6,180.59,5.84740517]
[1755502033708,10.0,180.58,180.55,0.31]
[1755502033910,49.78,180.58,180.55,0.31]
[1755502034077,10.0,180.56,180.55,0.31]
[1755502034485,49.78,180.56,180.55,0.31]
[1755502034685,49.78,180.56,180.55,13.34339637]
[1755502034980,49.78,180.56,180.55,5.84863195]
[1755502035410,49.78,180.56,180.44,27.70993775]
[1755502035411,49.78,180.56,180.37,10.21166778]
[1755502035614,49.78,180.56,180.42,5.50599933]
[1755502035789,49.78,180.56,180.53,7.49476442]
[1755502036212,39.78,180.56,180.55,7.49476442]
[1755502036592,50.0,180.56,180.48,7.49476442]
[1755502036797,50.0,180.56,180.53,7.49476442]
[1755502037196,50.0,180.56,180.55,7.49476442]
[1755502037907,50.0,180.56,180.47,41.10621557]
[1755502037908,40.0,180.56,180.47,41.10621557]
[1755502038085,10.0,180.58,180.47,41.10621557]
[1755502038285,40.04,180.57,180.55,7.49476442]
[1755502038485,50.04,180.57,180.55,7.49476442]
[1755502038684,40.06,180.56,180.55,13.03339637]
[1755502039619,40.06,180.56,180.55,5.53863195]
[1755502040786,40.06,180.56,180.49,19.39165604]
[1755502041019,40.06,180.56,180.54,7.49476442]
[1755502041597,40.06,180.56,180.49,47.09402182]
[1755502041799,40.06,180.56,180.55,7.49476442]
[1755502042218,10.03,180.6,180.55,7.49476442]
[1755502042385,5.5350275,180.67,180.51,15.10621557]
[1755502042386,10.68,180.67,180.59,14.98952884]
[1755502042591,10.0,180.65,180.61,7.49476442]
[1755502042793,10.0,180.65,180.63,7.49476442]
[1755502042794,50.02,180.65,180.63,7.49476442]
[1755502043039,10.0,180.64,180.63,7.49476442]
[1755502043197,10.0,180.63,180.62,7.49476442]
[1755502043515,10.0,180.61,180.6,7.49476442]
[1755502043725,50.02,180.61,180.6,7.49476442]
[1755502043887,50.02,180.61,180.56,19.38413823]
[1755502043888,10.0,180.6,180.56,19.38413823]
[1755502044095,40.02,180.59,180.56,19.38413823]
[1755502044823,40.02,180.59,180.53,15.10621557]
[1755502045140,40.02,180.59,180.58,7.49476442]
[1755502045513,40.02,180.59,180.53,15.10621557]
[1755502045514,10.0,180.57,180.52,19.38843341]
[1755502045827,40.0,180.56,180.55,7.49476442]
[1755502046810,50.0,180.56,180.55,7.49476442]
[1755502047605,50.0,180.56,180.54,5.53876433]
[1755502047980,50.68,180.56,180.55,7.49476442]
[1755502048165,10.0,180.55,180.53,13.03371798]
[1755502048299,39.98,180.54,180.53,13.03371798]
[1755502048494,39.98,180.54,180.53,5.53895356]
[1755502048700,39.98,180.54,180.5,5.5401662]
[1755502048922,39.98,180.54,180.53,7.49476442]
[1755502049107,39.98,180.54,180.5,13.85041551]
[1755502049299,39.98,180.54,180.53,7.49476442]
[1755502050101,49.98,180.54,180.5,13.85041551]
[1755502050321,49.98,180.54,180.53,7.49476442]
[1755502050500,49.98,180.54,180.5,13.85041551]
[1755502050704,49.98,180.54,180.53,7.49476442]
[1755502051109,49.98,180.54,180.53,13.03400997]
[1755502051309,10.0,180.53,180.47,13.85225548]
[1755502051629,10.0,180.53,180.52,7.49476442]
[1755502051802,50.02,180.53,180.47,13.85225548]
[1755502052018,50.02,180.53,180.52,7.49476442]
[1755502052633,50.02,180.53,180.47,13.85225548]
[1755502052811,10.03,180.56,180.52,7.49476442]
[1755502053015,40.02,180.55,180.48,7.49476442]
[1755502053542,40.02,180.55,180.47,13.85225548]
[1755502053543,10.0,180.54,180.47,13.85225548]
[1755502053850,40.1,180.53,180.52,7.49476442]
[1755502054341,50.78,180.53,180.52,7.49476442]
[1755502054544,10.0,180.52,180.5,7.49476442]
[1755502054837,40.12,180.51,180.5,5.53986349]
[1755502055045,40.12,180.51,180.5,13.03462791]
[1755502055828,40.12,180.51,180.5,5.53986349]
[1755502056127,40.12,180.51,180.5,13.03462791]
[1755502056928,40.12,180.51,180.5,5.53986349]
[1755502057262,40.24,180.53,180.5,26.88504342]
[1755502057551,40.24,180.53,180.5,19.390279]
[1755502057753,40.24,180.53,180.52,7.49476442]
[1755502058156,40.24,180.53,180.5,19.390279]
[1755502058453,40.24,180.53,180.52,7.49476442]
[1755502058823,40.24,180.53,180.5,13.85041551]
[1755502059023,40.24,180.53,180.52,7.49476442]
[1755502059680,40.24,180.53,180.5,13.85041551]
[1755502059984,40.24,180.53,180.52,7.49476442]
[1755502060475,40.92,180.53,180.52,7.49476442]
[1755502060681,40.92,180.53,180.5,13.85041551]
[1755502060851,40.24,180.53,180.52,13.03431682]
[1755502061876,40.92,180.53,180.52,13.03431682]
[1755502062255,40.24,180.53,180.52,13.03431682]
[1755502063364,40.34,180.55,180.52,26.88319783]
[1755502063578,0.03,180.56,180.54,7.49476442]
[1755502063773,0.03,180.56,180.55,7.49476442]
[1755502064604,0.03,180.56,180.52,19.38843341]
[1755502064760,0.03,180.56,180.55,7.49476442]
[1755502065373,0.03,180.56,180.55,13.03339637]
[1755502065949,0.71,180.56,180.55,13.03339637]
[1755502066173,0.03,180.56,180.55,13.03339637]
[1755502067189,0.03,180.56,180.55,5.53863195]
[1755502067361,0.03,180.56,180.55,13.03339637]
[1755502069077,0.03,180.56,180.55,5.53863195]
[1755502069391,0.03,180.56,180.55,13.03339637]
[1755502070180,0.03,180.56,180.55,5.53863195]
[1755502070370,0.03,180.56,180.52,13.90888101]
[1755502070371,33.46136805,180.55,180.52,13.90888101]
[1755502070566,33.46136805,180.55,180.54,7.49476442]
[1755502071774,33.46136805,180.55,180.54,13.03370315]
[1755502074694,0.03,180.56,180.54,13.03370315]
[1755502074881,0.03,180.56,180.55,7.49476442]
[1755502075685,0.75,180.56,180.55,7.49476442]
[1755502076028,0.03,180.56,180.55,7.49476442]
[1755502076718,0.03,180.56,180.55,13.03339637]
[1755502076896,1e-08,180.56,180.55,13.03339637]
[1755502077480,1e-08,180.56,180.55,5.53863195]
[1755502077678,1e-08,180.56,180.55,13.03339637]
[1755502078912,10.75,180.62,180.55,54.57313604]
[1755502079108,10.75,180.62,180.61,7.49476442]
[1755502079109,0.75,180.62,180.61,7.49476442]
[1755502079482,0.75,180.62,180.55,47.63223481]
[1755502079686,10.0,180.61,180.55,47.07837162]
[1755502079892,0.03,180.62,180.6,14.98952884]
[1755502080207,0.72,180.65,180.61,7.49476442]
[1755502080507,0.72,180.65,180.64,7.49476442]
[1755502081030,0.03,180.68,180.64,39.03063687]
[1755502081218,0.72,180.74,180.71,7.49476442]
[1755502081402,0.72,180.74,180.73,7.49476442]
[1755502081695,9.4258617,180.77,180.73,7.49476442]
[1755502082020,9.4258617,180.77,180.76,7.49476442]
[1755502083019,9.4258617,180.77,180.76,13.0269618]
[1755502083400,0.72,180.77,180.76,13.0269618]
[1755502084001,0.72,180.77,180.76,5.53219738]
[1755502084206,10.0,180.76,180.73,7.49476442]
[1755502084407,0.72,180.75,180.73,7.49476442]
[1755502084604,0.72,180.74,180.73,7.49476442]
[1755502084802,41.14,180.76,180.73,26.86066935]
[1755502085008,51.9,180.77,180.75,7.49476442]
[1755502085213,51.9,180.77,180.76,7.49476442]
[1755502085522,51.18,180.77,180.76,7.49476442]
[1755502085913,51.9,180.77,180.76,7.49476442]
[1755502086121,10.0,180.75,180.71,13.02849249]
[1755502086422,10.0,180.73,180.7,13.02874711]
[1755502086620,10.0,180.71,180.7,5.53398269]
[1755502086833,10.0,180.71,180.65,5.53556601]
[1755502086834,10.72,180.71,180.65,5.53556601]
[1755502087003,10.72,180.7,180.68,7.49476442]
[1755502087201,0.72,180.7,180.69,7.49476442]
[1755502087403,0.72,180.7,180.65,19.37448103]
[1755502087404,10.0,180.71,180.65,19.37448103]
[1755502087627,0.72,180.7,180.65,19.37448103]
[1755502087798,0.72,180.7,180.69,7.49476442]
[1755502088806,0.72,180.7,180.69,13.029105]
[1755502089528,10.72,180.7,180.69,13.029105]
[1755502090027,10.0,180.69,180.67,13.0294668]
[1755502090339,0.72,180.68,180.67,5.53470238]
[1755502090643,0.72,180.68,180.65,13.83891502]
[1755502090644,10.0,180.67,180.64,7.49476442]
[1755502090814,0.72,180.66,180.65,13.03033043]
[1755502091017,0.72,180.66,180.65,5.53556601]
[1755502091218,0.72,180.66,180.64,13.03057258]
[1755502091219,10.72,180.66,180.64,13.03057258]
[1755502091533,0.72,180.65,180.63,7.49476442]
[1755502091719,0.72,180.64,180.62,7.49476442]
[1755502091922,0.72,180.63,180.62,7.49476442]
[1755502092306,41.08,180.64,180.62,7.49476442]
[1755502092502,41.08,180.64,180.63,7.49476442]